[Event "December 5 Late 2023"]
[Site "https://www.chess.com"]
[Date "2023.12.05"]
[Round "1"]
[White "Rogov, Matfey"]
[Black "Bongo Akanga Ndjila, Barthelemy"]
[Result "1-0"]
[Board "181"]
[TimeControl "180+1"]
[WhiteFideId "44191308"]
[BlackFideId "10609431"]
[WhiteElo "2521"]
[BlackElo "2012"]
[WhiteTeam "RUS"]
[BlackTeam "GAB"]
[WhiteClock "0:00:05"]
[BlackClock "0:00:25"]

1. e4 {[%clk 0:02:56]}  e6 {[%clk 0:02:59]} 2. d4 {[%clk 0:02:50]}  d5 {[%clk 0:02:59]} 3. Bd3 {[%clk 0:02:49]}  Nf6 {[%clk 0:02:58]} 4. e5 {[%clk 0:02:49]}  Nfd7 {[%clk 0:02:57]} 5. c3 {[%clk 0:02:49]}  c5 {[%clk 0:02:57]} 6. Ne2 {[%clk 0:02:49]}  Nc6 {[%clk 0:02:57]} 7. a3 {[%clk 0:02:49]}  a6 {[%clk 0:02:55]} 8. b4 {[%clk 0:02:40]}  cxd4 {[%clk 0:02:43]} 9. cxd4 {[%clk 0:02:39]}  a5 {[%clk 0:02:40]} 10. b5 {[%clk 0:02:36]}  Na7 {[%clk 0:02:34]} 11. O-O {[%clk 0:02:17]}  Nb6 {[%clk 0:02:34]} 12. a4 {[%clk 0:02:08]}  Bd7 {[%clk 0:02:32]} 13. Nf4 {[%clk 0:02:03]}  g6 {[%clk 0:02:27]} 14. Nd2 {[%clk 0:01:53]}  Bb4 {[%clk 0:02:25]} 15. Qg4 {[%clk 0:01:44]}  O-O {[%clk 0:02:13]} 16. Nh5 {[%clk 0:01:14]}  Be7 {[%clk 0:02:09]} 17. Nf3 {[%clk 0:01:12]}  Kh8 {[%clk 0:02:07]} 18. Nf6 {[%clk 0:01:07]}  Bxf6 {[%clk 0:01:54]} 19. exf6 {[%clk 0:01:08]}  Qxf6 {[%clk 0:01:53]} 20. Bf4 {[%clk 0:00:55]}  Kg8 {[%clk 0:01:44]} 21. Qg3 {[%clk 0:00:27]}  Rfc8 {[%clk 0:01:34]} 22. h4 {[%clk 0:00:26]}  Nc4 {[%clk 0:01:33]} 23. h5 {[%clk 0:00:23]}  Qg7 {[%clk 0:01:15]} 24. Ne5 {[%clk 0:00:21]}  Be8 {[%clk 0:01:11]} 25. h6 {[%clk 0:00:07]}  Qf8 {[%clk 0:01:10]} 26. Bxc4 {[%clk 0:00:03]}  dxc4 {[%clk 0:01:08]} 27. Ng4 {[%clk 0:00:04]}  f5 {[%clk 0:01:05]} 28. Ne5 {[%clk 0:00:03]}  c3 {[%clk 0:00:57]} 29. Rac1 {[%clk 0:00:03]}  Qb4 {[%clk 0:00:52]} 30. Qg5 {[%clk 0:00:03]}  Qf8 {[%clk 0:00:40]} 31. d5 {[%clk 0:00:02]}  exd5 {[%clk 0:00:37]} 32. Rfe1 {[%clk 0:00:02]}  d4 {[%clk 0:00:31]} 33. Nf3 {[%clk 0:00:03]}  Rd8 {[%clk 0:00:29]} 34. Re7 {[%clk 0:00:03]}  Bf7 {[%clk 0:00:28]} 35. Rce1 {[%clk 0:00:04]}  Re8 {[%clk 0:00:27]} 36. Qf6 {[%clk 0:00:04]}  Rxe7 {[%clk 0:00:26]} 37. Rxe7 {[%clk 0:00:05]}  Re8 {[%clk 0:00:25]} 38. Be5 {[%clk 0:00:05]}  Rxe7 {[%clk 0:00:25]} 39. Qh8# {[%clk 0:00:05]} 1-0

[Event "December 5 Late 2023"]
[Site "https://www.chess.com"]
[Date "2023.12.05"]
[Round "1"]
[White "Monteiro, Luis Felipe Furtado"]
[Black "Petukhov, Dmitry"]
[Result "0-1"]
[Board "182"]
[TimeControl "180+1"]
[WhiteFideId "22702806"]
[BlackFideId "4142748"]
[WhiteElo "2006"]
[BlackElo "2520"]
[WhiteTeam "BRA"]
[BlackTeam "RUS"]
[WhiteClock "0:01:34"]
[BlackClock "0:01:58"]

1. d4 {[%clk 0:02:53]}  Nf6 {[%clk 0:02:59]} 2. c4 {[%clk 0:02:54]}  g6 {[%clk 0:02:59]} 3. Nc3 {[%clk 0:02:51]}  d5 {[%clk 0:03:00]} 4. Nf3 {[%clk 0:02:50]}  Bg7 {[%clk 0:03:00]} 5. Bg5 {[%clk 0:02:46]}  Ne4 {[%clk 0:03:00]} 6. Bf4 {[%clk 0:02:18]}  Nxc3 {[%clk 0:02:56]} 7. bxc3 {[%clk 0:02:18]}  dxc4 {[%clk 0:02:56]} 8. e4 {[%clk 0:02:17]}  b5 {[%clk 0:02:55]} 9. a4 {[%clk 0:02:14]}  c6 {[%clk 0:02:55]} 10. Be2 {[%clk 0:02:13]}  O-O {[%clk 0:02:54]} 11. O-O {[%clk 0:02:13]}  a6 {[%clk 0:02:52]} 12. d5 {[%clk 0:02:09]}  cxd5 {[%clk 0:02:51]} 13. exd5 {[%clk 0:02:09]}  Bb7 {[%clk 0:02:46]} 14. axb5 {[%clk 0:02:08]}  axb5 {[%clk 0:02:46]} 15. Rxa8 {[%clk 0:02:08]}  Bxa8 {[%clk 0:02:47]} 16. Qb1 {[%clk 0:02:07]}  Qxd5 {[%clk 0:02:42]} 17. Rd1 {[%clk 0:02:07]}  Qc6 {[%clk 0:02:41]} 18. Bxb8 {[%clk 0:02:01]}  Rxb8 {[%clk 0:02:40]} 19. Qb4 {[%clk 0:02:02]}  e6 {[%clk 0:02:27]} 20. Bf1 {[%clk 0:02:01]}  Bf8 {[%clk 0:02:26]} 21. Qa5 {[%clk 0:01:58]}  Qb6 {[%clk 0:02:20]} 22. Qxb6 {[%clk 0:01:50]}  Rxb6 {[%clk 0:02:21]} 23. Rb1 {[%clk 0:01:50]}  Be4 {[%clk 0:02:11]} 24. Rb2 {[%clk 0:01:42]}  Bg7 {[%clk 0:02:10]} 25. Nd4 {[%clk 0:01:40]}  Bxd4 {[%clk 0:02:05]} 26. cxd4 {[%clk 0:01:41]}  c3 {[%clk 0:02:03]} 27. Ra2 {[%clk 0:01:37]}  c2 {[%clk 0:01:59]} 28. Ra1 {[%clk 0:01:37]}  b4 {[%clk 0:01:59]} 29. Re1 {[%clk 0:01:34]}  b3 {[%clk 0:01:58]} 0-1

[Event "December 5 Late 2023"]
[Site "https://www.chess.com"]
[Date "2023.12.05"]
[Round "1"]
[White "Calcada, Lucas Galvan"]
[Black "Suder, Jakub"]
[Result "0-1"]
[Board "184"]
[TimeControl "180+1"]
[WhiteFideId "22746099"]
[BlackFideId "1195310"]
[WhiteElo "1977"]
[BlackElo "2520"]
[WhiteTeam "BRA"]
[BlackTeam "POL"]
[WhiteClock "0:00:44"]
[BlackClock "0:00:58"]

1. e4 {[%clk 0:02:59]}  c5 {[%clk 0:02:59]} 2. Nf3 {[%clk 0:02:56]}  e6 {[%clk 0:02:59]} 3. d4 {[%clk 0:02:57]}  cxd4 {[%clk 0:03:00]} 4. Nxd4 {[%clk 0:02:58]}  Nc6 {[%clk 0:03:00]} 5. Nb5 {[%clk 0:02:56]}  Nf6 {[%clk 0:02:59]} 6. Bg5 {[%clk 0:02:40]}  d6 {[%clk 0:02:49]} 7. c4 {[%clk 0:02:06]}  a6 {[%clk 0:02:30]} 8. N5c3 {[%clk 0:01:58]}  Qb6 {[%clk 0:02:26]} 9. Qd2 {[%clk 0:01:41]}  Be7 {[%clk 0:02:21]} 10. Be3 {[%clk 0:01:41]}  Qc7 {[%clk 0:02:19]} 11. Be2 {[%clk 0:01:41]}  O-O {[%clk 0:02:17]} 12. O-O {[%clk 0:01:40]}  Ne5 {[%clk 0:02:17]} 13. Na3 {[%clk 0:01:35]}  b6 {[%clk 0:02:07]} 14. f3 {[%clk 0:01:33]}  Bb7 {[%clk 0:02:05]} 15. Rac1 {[%clk 0:01:32]}  Rac8 {[%clk 0:02:03]} 16. Na4 {[%clk 0:01:29]}  Ned7 {[%clk 0:02:01]} 17. Rfd1 {[%clk 0:01:24]}  Bc6 {[%clk 0:01:59]} 18. Nc3 {[%clk 0:01:24]}  Qb8 {[%clk 0:01:54]} 19. Nc2 {[%clk 0:01:23]}  Qa8 {[%clk 0:01:52]} 20. Nb4 {[%clk 0:01:20]}  Bb7 {[%clk 0:01:51]} 21. Nc2 {[%clk 0:01:17]}  Bc6 {[%clk 0:01:51]} 22. Nb4 {[%clk 0:01:16]}  Bb7 {[%clk 0:01:50]} 23. Nc2 {[%clk 0:01:16]}  Rfd8 {[%clk 0:01:50]} 24. Na4 {[%clk 0:01:13]}  Nc5 {[%clk 0:01:45]} 25. Nxb6 {[%clk 0:01:12]}  Qb8 {[%clk 0:01:44]} 26. Nxc8 {[%clk 0:01:12]}  Rxc8 {[%clk 0:01:44]} 27. b3 {[%clk 0:01:11]}  h5 {[%clk 0:01:37]} 28. Nd4 {[%clk 0:01:11]}  h4 {[%clk 0:01:35]} 29. Bf2 {[%clk 0:01:10]}  Nh5 {[%clk 0:01:35]} 30. f4 {[%clk 0:01:08]}  Nxe4 {[%clk 0:01:34]} 31. Qe1 {[%clk 0:01:08]}  Nxf4 {[%clk 0:01:33]} 32. Bf3 {[%clk 0:01:08]}  Qa8 {[%clk 0:01:28]} 33. Bxh4 {[%clk 0:01:06]}  g5 {[%clk 0:01:17]} 34. Bg3 {[%clk 0:01:01]}  Bf6 {[%clk 0:01:12]} 35. Ne2 {[%clk 0:00:49]}  Nxg3 {[%clk 0:01:02]} 36. Qxg3 {[%clk 0:00:50]}  Bxf3 {[%clk 0:00:59]} 37. Qxf3 {[%clk 0:00:50]}  Qxf3 {[%clk 0:00:58]} 38. gxf3 {[%clk 0:00:44]}  Nxe2+ {[%clk 0:00:58]} 0-1

[Event "December 5 Late 2023"]
[Site "https://www.chess.com"]
[Date "2023.12.05"]
[Round "1"]
[White "Koc, Przemyslaw"]
[Black "Dmitriev, Sergey"]
[Result "1-0"]
[Board "185"]
[TimeControl "180+1"]
[WhiteFideId "1109081"]
[BlackFideId "14101785"]
[WhiteElo "2519"]
[BlackElo "1963"]
[WhiteTeam "POL"]
[BlackTeam "UKR"]
[WhiteClock "0:01:15"]
[BlackClock "0:00:32"]

1. d4 {[%clk 0:03:00]}  d6 {[%clk 0:02:59]} 2. e4 {[%clk 0:02:59]}  g6 {[%clk 0:02:58]} 3. Nc3 {[%clk 0:02:59]}  Bg7 {[%clk 0:02:57]} 4. Bg5 {[%clk 0:02:59]}  Nf6 {[%clk 0:02:58]} 5. e5 {[%clk 0:02:59]}  dxe5 {[%clk 0:02:57]} 6. dxe5 {[%clk 0:03:00]}  Nfd7 {[%clk 0:02:47]} 7. f4 {[%clk 0:02:57]}  O-O {[%clk 0:02:46]} 8. Bc4 {[%clk 0:02:56]}  Kh8 {[%clk 0:02:43]} 9. Bh4 {[%clk 0:02:50]}  f6 {[%clk 0:02:33]} 10. exf6 {[%clk 0:02:30]}  Nxf6 {[%clk 0:02:31]} 11. Qxd8 {[%clk 0:02:29]}  Rxd8 {[%clk 0:02:30]} 12. Nf3 {[%clk 0:02:29]}  Bf5 {[%clk 0:02:23]} 13. Ne5 {[%clk 0:02:27]}  Rf8 {[%clk 0:02:14]} 14. O-O-O {[%clk 0:02:23]}  h6 {[%clk 0:02:07]} 15. h3 {[%clk 0:02:20]}  Nc6 {[%clk 0:02:03]} 16. g4 {[%clk 0:02:19]}  Nxe5 {[%clk 0:02:00]} 17. fxe5 {[%clk 0:02:19]}  Nxg4 {[%clk 0:01:50]} 18. hxg4 {[%clk 0:02:18]}  Bxg4 {[%clk 0:01:50]} 19. Rdf1 {[%clk 0:02:15]}  h5 {[%clk 0:01:47]} 20. Bxe7 {[%clk 0:02:13]}  Rxf1+ {[%clk 0:01:39]} 21. Rxf1 {[%clk 0:02:12]}  Bxe5 {[%clk 0:01:39]} 22. Bf6+ {[%clk 0:02:03]}  Bxf6 {[%clk 0:01:38]} 23. Rxf6 {[%clk 0:02:04]}  Rd8 {[%clk 0:01:24]} 24. Rxg6 {[%clk 0:02:02]}  Rf8 {[%clk 0:01:17]} 25. Ne4 {[%clk 0:01:56]}  Bf5 {[%clk 0:01:07]} 26. Rf6 {[%clk 0:01:56]}  Rxf6 {[%clk 0:01:00]} 27. Nxf6 {[%clk 0:01:56]}  h4 {[%clk 0:01:00]} 28. Bd3 {[%clk 0:01:48]}  Be6 {[%clk 0:00:57]} 29. Be4 {[%clk 0:01:43]}  c6 {[%clk 0:00:56]} 30. Nh5 {[%clk 0:01:40]}  h3 {[%clk 0:00:52]} 31. a3 {[%clk 0:01:36]}  h2 {[%clk 0:00:50]} 32. Ng3 {[%clk 0:01:36]}  Kg7 {[%clk 0:00:50]} 33. Kd2 {[%clk 0:01:37]}  Kf6 {[%clk 0:00:50]} 34. Ke3 {[%clk 0:01:37]}  Kg5 {[%clk 0:00:50]} 35. Kf2 {[%clk 0:01:37]}  Kf4 {[%clk 0:00:45]} 36. Bh1 {[%clk 0:01:36]}  Bd5 {[%clk 0:00:37]} 37. Ne2+ {[%clk 0:01:30]}  Kg4 {[%clk 0:00:33]} 38. Bxd5 {[%clk 0:01:31]}  cxd5 {[%clk 0:00:31]} 39. Kg2 {[%clk 0:01:32]}  Kf5 {[%clk 0:00:32]} 40. Kxh2 {[%clk 0:01:21]}  Ke4 {[%clk 0:00:32]} 41. Nc3+ {[%clk 0:01:18]}  Kd4 {[%clk 0:00:29]} 42. Kg3 {[%clk 0:01:17]}  a5 {[%clk 0:00:29]} 43. Kf4 {[%clk 0:01:16]}  b5 {[%clk 0:00:28]} 44. Nxb5+ {[%clk 0:01:16]}  Kc4 {[%clk 0:00:29]} 45. Ke5 {[%clk 0:01:14]}  d4 {[%clk 0:00:29]} 46. Nxd4 {[%clk 0:01:13]}  a4 {[%clk 0:00:30]} 47. Ke4 {[%clk 0:01:11]}  Kc5 {[%clk 0:00:29]} 48. Kd3 {[%clk 0:01:11]}  Kd5 {[%clk 0:00:29]} 49. c4+ {[%clk 0:01:11]}  Kc5 {[%clk 0:00:29]} 50. Kc3 {[%clk 0:01:12]}  Kb6 {[%clk 0:00:29]} 51. Kb4 {[%clk 0:01:12]}  Kc7 {[%clk 0:00:29]} 52. Kxa4 {[%clk 0:01:12]}  Kb6 {[%clk 0:00:29]} 53. Kb4 {[%clk 0:01:13]}  Ka6 {[%clk 0:00:29]} 54. a4 {[%clk 0:01:14]}  Kb7 {[%clk 0:00:30]} 55. a5 {[%clk 0:01:15]}  Ka6 {[%clk 0:00:30]} 56. Ka4 {[%clk 0:01:15]}  Ka7 {[%clk 0:00:30]} 57. Kb5 {[%clk 0:01:16]}  Kb7 {[%clk 0:00:30]} 58. a6+ {[%clk 0:01:16]}  Ka7 {[%clk 0:00:31]} 59. Ka5 {[%clk 0:01:16]}  Ka8 {[%clk 0:00:31]} 60. Kb6 {[%clk 0:01:16]}  Kb8 {[%clk 0:00:32]} 61. Ne6 {[%clk 0:01:15]}  Ka8 {[%clk 0:00:31]} 62. c5 {[%clk 0:01:14]}  Kb8 {[%clk 0:00:32]} 63. a7+ {[%clk 0:01:14]}  Ka8 {[%clk 0:00:32]} 64. Nc7# {[%clk 0:01:15]} 1-0

[Event "December 5 Late 2023"]
[Site "https://www.chess.com"]
[Date "2023.12.05"]
[Round "1"]
[White "Thake, Conrad"]
[Black "Hadzovic, Amir"]
[Result "0-1"]
[Board "186"]
[TimeControl "180+1"]
[WhiteFideId "5602947"]
[BlackFideId "14402300"]
[WhiteElo "1930"]
[BlackElo "2519"]
[WhiteTeam "MLT"]
[BlackTeam "BIH"]
[WhiteClock "0:00:09"]
[BlackClock "0:01:52"]

1. e4 {[%clk 0:03:00]}  e5 {[%clk 0:02:59]} 2. Nf3 {[%clk 0:03:00]}  Nc6 {[%clk 0:02:59]} 3. d4 {[%clk 0:03:00]}  exd4 {[%clk 0:03:00]} 4. Bc4 {[%clk 0:03:00]}  Nf6 {[%clk 0:03:00]} 5. e5 {[%clk 0:02:58]}  d5 {[%clk 0:03:00]} 6. Bb5 {[%clk 0:02:57]}  Ne4 {[%clk 0:03:01]} 7. Nxd4 {[%clk 0:02:51]}  Bc5 {[%clk 0:03:00]} 8. c3 {[%clk 0:02:45]}  O-O {[%clk 0:02:59]} 9. Bxc6 {[%clk 0:02:44]}  bxc6 {[%clk 0:02:58]} 10. O-O {[%clk 0:02:42]}  Qe8 {[%clk 0:02:58]} 11. Bf4 {[%clk 0:02:23]}  f6 {[%clk 0:02:53]} 12. exf6 {[%clk 0:02:16]}  Rxf6 {[%clk 0:02:54]} 13. Bg3 {[%clk 0:02:13]}  Qf7 {[%clk 0:02:47]} 14. Nd2 {[%clk 0:02:11]}  Nxg3 {[%clk 0:02:44]} 15. hxg3 {[%clk 0:02:11]}  Ba6 {[%clk 0:02:44]} 16. Re1 {[%clk 0:01:51]}  Rxf2 {[%clk 0:02:43]} 17. N2f3 {[%clk 0:01:50]}  Rxb2 {[%clk 0:02:33]} 18. Qc1 {[%clk 0:01:31]}  Rab8 {[%clk 0:02:20]} 19. Qe3 {[%clk 0:01:22]}  h6 {[%clk 0:02:08]} 20. Kh2 {[%clk 0:01:17]}  Bd6 {[%clk 0:02:02]} 21. Kg1 {[%clk 0:01:03]}  Bxg3 {[%clk 0:02:01]} 22. Rf1 {[%clk 0:01:03]}  Bxf1 {[%clk 0:02:00]} 23. Rxf1 {[%clk 0:01:03]}  Rb1 {[%clk 0:02:00]} 24. Ne1 {[%clk 0:00:56]}  Qxf1+ {[%clk 0:01:57]} 25. Kxf1 {[%clk 0:00:54]}  Rxe1+ {[%clk 0:01:58]} 26. Qxe1 {[%clk 0:00:53]}  Bxe1 {[%clk 0:01:59]} 27. Kxe1 {[%clk 0:00:54]}  Rb2 {[%clk 0:01:59]} 28. Nxc6 {[%clk 0:00:51]}  Rxa2 {[%clk 0:01:57]} 29. Ne7+ {[%clk 0:00:51]}  Kh7 {[%clk 0:01:58]} 30. Nxd5 {[%clk 0:00:52]}  Rxg2 {[%clk 0:01:58]} 31. Nxc7 {[%clk 0:00:52]}  h5 {[%clk 0:01:58]} 32. Nb5 {[%clk 0:00:52]}  h4 {[%clk 0:01:59]} 33. c4 {[%clk 0:00:51]}  h3 {[%clk 0:01:59]} 34. Kf1 {[%clk 0:00:45]}  Rc2 {[%clk 0:01:59]} 35. Kg1 {[%clk 0:00:44]}  a5 {[%clk 0:01:57]} 36. Na3 {[%clk 0:00:40]}  g5 {[%clk 0:01:57]} 37. Nxc2 {[%clk 0:00:37]}  g4 {[%clk 0:01:57]} 38. Kh2 {[%clk 0:00:37]}  Kg6 {[%clk 0:01:57]} 39. c5 {[%clk 0:00:36]}  Kf5 {[%clk 0:01:57]} 40. c6 {[%clk 0:00:36]}  Ke6 {[%clk 0:01:57]} 41. Nd4+ {[%clk 0:00:35]}  Kd6 {[%clk 0:01:56]} 42. Kg3 {[%clk 0:00:32]}  a4 {[%clk 0:01:56]} 43. Nc2 {[%clk 0:00:30]}  Kxc6 {[%clk 0:01:55]} 44. Kh2 {[%clk 0:00:23]}  Kc5 {[%clk 0:01:53]} 45. Kg1 {[%clk 0:00:19]}  Kc4 {[%clk 0:01:49]} 46. Ne3+ {[%clk 0:00:18]}  Kb3 {[%clk 0:01:49]} 47. Nxg4 {[%clk 0:00:15]}  a3 {[%clk 0:01:50]} 48. Ne3 {[%clk 0:00:11]}  a2 {[%clk 0:01:51]} 49. Kh2 {[%clk 0:00:11]}  a1=Q {[%clk 0:01:51]} 50. Kxh3 {[%clk 0:00:11]}  Qc3 {[%clk 0:01:51]} 51. Kg4 {[%clk 0:00:09]}  Qxe3 {[%clk 0:01:52]} 0-1

[Event "December 5 Late 2023"]
[Site "https://www.chess.com"]
[Date "2023.12.05"]
[Round "1"]
[White "Vargas, Mauricio"]
[Black "Prithu Gupta"]
[Result "0-1"]
[Board "188"]
[TimeControl "180+1"]
[WhiteFideId "4404572"]
[BlackFideId "46618546"]
[WhiteElo "1830"]
[BlackElo "2515"]
[WhiteTeam "COL"]
[BlackTeam "IND"]
[WhiteClock "0:00:00"]
[BlackClock "0:01:51"]

1. e4 {[%clk 0:02:58]}  e5 {[%clk 0:02:58]} 2. Nf3 {[%clk 0:02:58]}  Nc6 {[%clk 0:02:58]} 3. Bc4 {[%clk 0:02:57]}  Nf6 {[%clk 0:02:58]} 4. O-O {[%clk 0:02:53]}  Bc5 {[%clk 0:02:58]} 5. d4 {[%clk 0:02:51]}  Bxd4 {[%clk 0:02:57]} 6. Nxd4 {[%clk 0:02:44]}  Nxd4 {[%clk 0:02:58]} 7. Bg5 {[%clk 0:02:41]}  d6 {[%clk 0:02:55]} 8. f4 {[%clk 0:02:39]}  Be6 {[%clk 0:02:53]} 9. Bd3 {[%clk 0:01:57]}  c6 {[%clk 0:02:42]} 10. a4 {[%clk 0:01:54]}  Qb6 {[%clk 0:02:41]} 11. Kh1 {[%clk 0:01:49]}  h6 {[%clk 0:02:39]} 12. Bxf6 {[%clk 0:01:47]}  gxf6 {[%clk 0:02:40]} 13. f5 {[%clk 0:01:22]}  Bd7 {[%clk 0:02:39]} 14. b3 {[%clk 0:01:13]}  a5 {[%clk 0:02:36]} 15. Bc4 {[%clk 0:01:12]}  d5 {[%clk 0:02:32]} 16. Bd3 {[%clk 0:01:01]}  O-O-O {[%clk 0:02:31]} 17. Nd2 {[%clk 0:00:55]}  Qc5 {[%clk 0:02:24]} 18. Rc1 {[%clk 0:00:51]}  Qc3 {[%clk 0:02:17]} 19. Nb1 {[%clk 0:00:42]}  Qb2 {[%clk 0:02:14]} 20. exd5 {[%clk 0:00:29]}  cxd5 {[%clk 0:02:06]} 21. Qe1 {[%clk 0:00:20]}  b6 {[%clk 0:01:56]} 22. Ba6+ {[%clk 0:00:20]}  Kb8 {[%clk 0:01:55]} 23. Rf3 {[%clk 0:00:19]}  Nxf3 {[%clk 0:01:54]} 24. gxf3 {[%clk 0:00:19]}  Rhg8 {[%clk 0:01:54]} 25. f4 {[%clk 0:00:16]}  d4 {[%clk 0:01:53]} 26. Qe4 {[%clk 0:00:00]}  Qxc1+ {[%clk 0:01:51]} 0-1

[Event "December 5 Late 2023"]
[Site "https://www.chess.com"]
[Date "2023.12.05"]
[Round "2"]
[White "Nakamura, Hikaru"]
[Black "Cieslak, Patryk"]
[Result "1-0"]
[Board "2"]
[TimeControl "180+1"]
[WhiteFideId "2016192"]
[BlackFideId "21078882"]
[WhiteElo "3238"]
[BlackElo "2643"]
[WhiteTeam "USA"]
[BlackTeam "POL"]
[WhiteClock "0:00:49"]
[BlackClock "0:00:00"]

1. Nf3 {[%clk 0:03:00]}  d5 {[%clk 0:03:00]} 2. g3 {[%clk 0:03:00]}  Nf6 {[%clk 0:02:59]} 3. d3 {[%clk 0:03:00]}  e6 {[%clk 0:02:59]} 4. Bg2 {[%clk 0:02:59]}  c5 {[%clk 0:03:00]} 5. Nbd2 {[%clk 0:03:00]}  Nc6 {[%clk 0:03:01]} 6. e4 {[%clk 0:03:01]}  Be7 {[%clk 0:03:01]} 7. O-O {[%clk 0:03:01]}  O-O {[%clk 0:03:02]} 8. Re1 {[%clk 0:03:02]}  b5 {[%clk 0:03:01]} 9. e5 {[%clk 0:03:02]}  Nd7 {[%clk 0:03:02]} 10. Nf1 {[%clk 0:03:03]}  a5 {[%clk 0:03:02]} 11. h4 {[%clk 0:03:04]}  a4 {[%clk 0:03:02]} 12. h5 {[%clk 0:03:04]}  h6 {[%clk 0:03:02]} 13. a3 {[%clk 0:03:04]}  Qe8 {[%clk 0:02:59]} 14. Bh3 {[%clk 0:03:01]}  Nd8 {[%clk 0:02:35]} 15. N3h2 {[%clk 0:02:46]}  f5 {[%clk 0:02:31]} 16. f4 {[%clk 0:02:43]}  d4 {[%clk 0:02:25]} 17. Bg2 {[%clk 0:02:37]}  Bb7 {[%clk 0:02:25]} 18. Bxb7 {[%clk 0:02:37]}  Nxb7 {[%clk 0:02:26]} 19. g4 {[%clk 0:02:38]}  fxg4 {[%clk 0:02:24]} 20. Qxg4 {[%clk 0:02:37]}  Ra6 {[%clk 0:02:11]} 21. Re2 {[%clk 0:02:37]}  c4 {[%clk 0:02:04]} 22. Rg2 {[%clk 0:02:37]}  Qf7 {[%clk 0:02:02]} 23. Nf3 {[%clk 0:02:30]}  cxd3 {[%clk 0:01:58]} 24. cxd3 {[%clk 0:02:31]}  Nbc5 {[%clk 0:01:54]} 25. Nxd4 {[%clk 0:02:27]}  Nxd3 {[%clk 0:01:52]} 26. Be3 {[%clk 0:02:27]}  Bc5 {[%clk 0:01:39]} 27. Ne2 {[%clk 0:02:16]}  Be7 {[%clk 0:01:18]} 28. Rd1 {[%clk 0:02:13]}  N7xe5 {[%clk 0:01:09]} 29. fxe5 {[%clk 0:02:10]}  Nxe5 {[%clk 0:01:10]} 30. Qh3 {[%clk 0:02:10]}  Nf3+ {[%clk 0:01:11]} 31. Kh1 {[%clk 0:02:11]}  e5 {[%clk 0:01:11]} 32. Nfg3 {[%clk 0:02:04]}  Rc6 {[%clk 0:01:06]} 33. Rf1 {[%clk 0:01:43]}  Rc4 {[%clk 0:01:05]} 34. Ng1 {[%clk 0:01:24]}  Qd5 {[%clk 0:00:49]} 35. Rxf3 {[%clk 0:01:08]}  Rxf3 {[%clk 0:00:43]} 36. Nxf3 {[%clk 0:01:07]}  Qxf3 {[%clk 0:00:42]} 37. Qe6+ {[%clk 0:01:07]}  Kf8 {[%clk 0:00:16]} 38. Qf5+ {[%clk 0:01:02]}  Qxf5 {[%clk 0:00:15]} 39. Nxf5 {[%clk 0:01:03]}  Bf6 {[%clk 0:00:16]} 40. Rf2 {[%clk 0:01:03]}  Re4 {[%clk 0:00:09]} 41. Bc5+ {[%clk 0:01:02]}  Kg8 {[%clk 0:00:09]} 42. Nxh6+ {[%clk 0:01:03]}  Kh7 {[%clk 0:00:09]} 43. Nf5 {[%clk 0:01:02]}  Bg5 {[%clk 0:00:09]} 44. Rg2 {[%clk 0:01:01]}  Bf6 {[%clk 0:00:08]} 45. Be3 {[%clk 0:01:01]}  b4 {[%clk 0:00:07]} 46. Rc2 {[%clk 0:00:50]}  bxa3 {[%clk 0:00:06]} 47. bxa3 {[%clk 0:00:51]}  Rg4 {[%clk 0:00:04]} 48. Rc7 {[%clk 0:00:51]}  Kh8 {[%clk 0:00:05]} 49. Kh2 {[%clk 0:00:49]}  Bg5 {[%clk 0:00:01]} 50. Kh3 {[%clk 0:00:49]}  Bxe3 {[%clk 0:00:00]} 51. Kxg4 {[%clk 0:00:49]} 1-0

[Event "December 5 Late 2023"]
[Site "https://www.chess.com"]
[Date "2023.12.05"]
[Round "2"]
[White "Krishnan, Varun"]
[Black "Naroditsky, Daniel"]
[Result "0-1"]
[Board "3"]
[TimeControl "180+1"]
[WhiteFideId "5054508"]
[BlackFideId "2026961"]
[WhiteElo "2641"]
[BlackElo "3171"]
[WhiteTeam "USA"]
[BlackTeam "USA"]
[WhiteClock "0:00:00"]
[BlackClock "0:00:05"]

1. e4 {[%clk 0:03:00]}  Nf6 {[%clk 0:03:00]} 2. e5 {[%clk 0:03:00]}  Nd5 {[%clk 0:03:01]} 3. d4 {[%clk 0:02:58]}  d6 {[%clk 0:03:01]} 4. c4 {[%clk 0:02:53]}  Nb6 {[%clk 0:03:01]} 5. exd6 {[%clk 0:02:53]}  exd6 {[%clk 0:03:01]} 6. Nc3 {[%clk 0:02:51]}  Be7 {[%clk 0:03:01]} 7. Bd3 {[%clk 0:02:49]}  O-O {[%clk 0:03:01]} 8. Nge2 {[%clk 0:02:49]}  Nc6 {[%clk 0:02:48]} 9. O-O {[%clk 0:02:46]}  Bg4 {[%clk 0:02:48]} 10. Be3 {[%clk 0:02:39]}  Re8 {[%clk 0:02:45]} 11. a3 {[%clk 0:02:26]}  Bh5 {[%clk 0:02:44]} 12. b4 {[%clk 0:02:20]}  Bf6 {[%clk 0:02:38]} 13. Qb3 {[%clk 0:02:15]}  Bg6 {[%clk 0:02:31]} 14. Rfd1 {[%clk 0:02:07]}  Bg5 {[%clk 0:02:16]} 15. Bxg5 {[%clk 0:01:41]}  Qxg5 {[%clk 0:02:17]} 16. c5 {[%clk 0:01:39]}  Nd7 {[%clk 0:02:07]} 17. Nb5 {[%clk 0:01:31]}  dxc5 {[%clk 0:01:11]} 18. Nxc7 {[%clk 0:01:17]}  Rxe2 {[%clk 0:01:08]} 19. Bxe2 {[%clk 0:01:18]}  Rc8 {[%clk 0:01:08]} 20. Nb5 {[%clk 0:01:03]}  cxd4 {[%clk 0:00:44]} 21. Nxd4 {[%clk 0:00:46]}  Nce5 {[%clk 0:00:40]} 22. Qg3 {[%clk 0:00:34]}  Qf6 {[%clk 0:00:36]} 23. Rac1 {[%clk 0:00:32]}  Re8 {[%clk 0:00:37]} 24. Nf3 {[%clk 0:00:27]}  h6 {[%clk 0:00:31]} 25. Nxe5 {[%clk 0:00:26]}  Nxe5 {[%clk 0:00:32]} 26. Re1 {[%clk 0:00:24]}  Rd8 {[%clk 0:00:23]} 27. Bf1 {[%clk 0:00:21]}  Nc6 {[%clk 0:00:22]} 28. Qc7 {[%clk 0:00:19]}  Rd2 {[%clk 0:00:23]} 29. Qg3 {[%clk 0:00:11]}  Kh7 {[%clk 0:00:17]} 30. Red1 {[%clk 0:00:09]}  Rb2 {[%clk 0:00:14]} 31. b5 {[%clk 0:00:08]}  Nd4 {[%clk 0:00:12]} 32. Qe3 {[%clk 0:00:07]}  Ne6 {[%clk 0:00:08]} 33. Rd2 {[%clk 0:00:05]}  Rxd2 {[%clk 0:00:05]} 34. Qxd2 {[%clk 0:00:05]}  Nf4 {[%clk 0:00:04]} 35. g3 {[%clk 0:00:05]}  Ne6 {[%clk 0:00:05]} 36. Bd3 {[%clk 0:00:04]}  Ng5 {[%clk 0:00:05]} 37. Bxg6+ {[%clk 0:00:04]}  fxg6 {[%clk 0:00:06]} 38. Qe2 {[%clk 0:00:02]}  Qf5 {[%clk 0:00:05]} 39. h4 {[%clk 0:00:02]}  Nf3+ {[%clk 0:00:05]} 40. Kg2 {[%clk 0:00:02]}  Nd4 {[%clk 0:00:06]} 41. Qe3 {[%clk 0:00:02]}  Qd5+ {[%clk 0:00:07]} 42. Kh2 {[%clk 0:00:01]}  Nf3+ {[%clk 0:00:06]} 43. Kh3 {[%clk 0:00:01]}  Ne5 {[%clk 0:00:06]} 44. Qf4 {[%clk 0:00:01]}  Nd3 {[%clk 0:00:05]} 45. Re1 {[%clk 0:00:00]}  Nxf4+ {[%clk 0:00:05]} 0-1